Cogmind - Beta 15 @@@ ROGUE MODE // 2025.07.08 @ 15:52:36 Player: korgoth Result: Smashed by cave-in Performance ------------- Evolutions (1) 500 Regions Visited (4) 800 Robots Destroyed (13) 65 Value Destroyed (290) 290 Prototype IDs (0) 0 Alien Tech Used (0) 0 Bonus (-93) -93 TOTAL SCORE: 1562 Bonus ------- Follower Combat Kills 35 Friendly Fire -128 Cogmind --------- Core Integrity 0/400 Matter 208/300 Energy 100/100 System Corruption 0% Temperature Cool (0) Movement Walking (130) Location -9/Mines Parts ------- > --- POWER (1) -------- (None) > --- PROPULSION (2) --- Makeshift Leg Flexi-carbon Leg > --- UTILITY (4) ------ Small Storage Unit > --- WEAPON (2) ------- Grenade Launcher > --- INVENTORY (8) ---- Light Ion Engine Makeshift Power Source Aluminum Leg Aluminum Leg Aluminum Leg Aluminum Leg Carbon-fiber Leg Small Storage Unit Peak State ------------ > --- POWER ------------ (None) > --- PROPULSION ------- Makeshift Leg Flexi-carbon Leg > --- UTILITY ---------- Small Storage Unit Huge Storage Unit > --- WEAPON ----------- Grenade Launcher > --- INVENTORY -------- Light Ion Engine Makeshift Power Source Aluminum Leg Aluminum Leg Aluminum Leg Aluminum Leg Carbon-fiber Leg Small Storage Unit [Rating: 13] Favorites ----------- Power Light Ion Engine Engine Light Ion Engine Propulsion Compact Wheel Leg Flexi-carbon Leg Wheel Compact Wheel Utility Small Storage Unit Device Seismic Detector Storage Small Storage Unit Protection Medium Armor Plating Weapon Light Assault Rifle Energy Gun Small Laser Ballistic Gun Light Assault Rifle Launcher Grenade Launcher Build | -11 -10 -10 -9 -9 ------- Run | Yrd Mat Min Mat Min Slots Evolved 2 | . . . 2 . Power . | . . . . . Propulsion . | . . . . . Utility 2 | . . . 2 . Weapon . | . . . . . Parts Attached 20 | 6 . 3 3 8 Power 3 | 1 . 1 . 1 Engine 3 | 1 . 1 . 1 Core . | . . . . . Reactor . | . . . . . Propulsion 6 | 2 . . . 4 Treads . | . . . . . Leg 2 | . . . . 2 Wheel 4 | 2 . . . 2 Hover . | . . . . . Flight . | . . . . . Utility 4 | 1 . 1 2 . Device 1 | . . 1 . . Storage 2 | 1 . . 1 . Processor . | . . . . . Hackware . | . . . . . Protection 1 | . . . 1 . Artifact . | . . . . . Weapon 7 | 2 . 1 1 3 Energy Gun 4 | 2 . 1 . 1 Energy Cannon . | . . . . . Ballistic Gun 1 | . . . 1 . Ballistic Cannon . | . . . . . Launcher 2 | . . . . 2 Special Weapon . | . . . . . Impact Weapon . | . . . . . Slashing Weapon . | . . . . . Piercing Weapon . | . . . . . Special Melee Weapon . | . . . . . Unidentified Prototypes . | . . . . . Parts Lost 12 | . . 2 1 9 Power 1 | . . . . 1 Propulsion 4 | . . . . 4 Utility 2 | . . . . 2 Weapon 5 | . . 2 1 2 Highest Loss Streak 8 | . . 1 1 8 To Critical Strikes . | . . . . . Average Backups 7 | 3 6 5 6 10 Power 1 | . 1 1 2 2 Propulsion 4 | 1 3 3 3 5 Utility . | . 1 . . . Weapon 1 | 1 1 . 1 1 Tool/Special . | . . . . . Unused Backups 8 | . . . . 8 Power 2 | . . . . 2 Propulsion 5 | . . . . 5 Utility 1 | . . . . 1 Weapon . | . . . . . Tool/Special . | . . . . . Average Slot Usage (%) 87 | . 85 92 81 86 Engine 10 | . 14 14 11 9 Wheel 22 | . 28 28 22 19 Device 8 | . . 8 11 9 Storage 16 | . 14 14 11 18 Protection 6 | . . . 8 9 Energy Gun 9 | . 28 26 6 . Ballistic Gun 6 | . . . 11 9 Launcher 5 | . . . . 9 Peak Build Rating 13 | 6 6 7 10 13 Average Rating 8 | 4 6 6 8 10 On Entrance 5 | . 6 6 6 8 Naked Turns . | . . . . . Heaviest Build 100 | 12 12 14 18 100 Greatest Support 40 | 26 26 26 26 40 Greatest Overweight (x) 9 | . . . . 9 Average Overweight (x) 1 | . . . . 2 Largest Inventory Capacity 25 | 8 8 8 25 25 Average Capacity 14 | 7 8 8 8 19 Most Carried 13 | 6 6 6 8 13 Average Carried 8 | 3 6 5 7 10 Final Capacity 8 | 8 8 8 8 8 Final Carried 8 | 6 6 6 8 8 Class Distribution -------------------- 100% | Mutant Dominant Class ---------------- Mutant | -10/Materials Mutant | -10/Mines Mutant | -9/Materials Mutant | -9/Mines Resources | -11 -10 -10 -9 -9 ----------- Run | Yrd Mat Min Mat Min Matter Collected 470 | 239 . 56 . 175 Remotely . | . . . . . Salvage Created 403 | 20 . 151 . 232 Parts 23 | 3 . 7 . 13 Haulers Intercepted . | . . . . . Recyclers Shooed 1 | 1 . . . . Parts Field Recycled . | . . . . . Retrieved Matter . | . . . . . Parts Self-Destructed . | . . . . . Prevented . | . . . . . Kills | -11 -10 -10 -9 -9 ------- Run | Yrd Mat Min Mat Min Combat Hostiles Destroyed 11 | . . 5 . 6 Guns 6 | . . 5 . 1 AOE 5 | . . . . 5 Classes Destroyed 5 | 1 . 2 . 2 Tunneler 2 | 1 . . . 1 Recycler 1 | . . . . 1 Swarmer 3 | . . 3 . . Grunt 6 | . . 2 . 4 Assembled 2 | . . . . 2 Thug 1 | . . . . 1 Best Kill Streak 4 | 1 . 3 . 4 Combat Bots Only 3 | . . 3 . 3 Max Kills in Single Turn 2 | 1 . 1 . 2 Gunslinging . | . . . . . Exploded 2 | . . . . 2 Melee . | . . . . . Uniques/NPCs Destroyed . | . . . . . Combat | -11 -10 -10 -9 -9 -------- Run | Yrd Mat Min Mat Min Hostile Shots Fired 131 | . 13 35 6 77 Missed 25 | . 7 3 1 14 Hits 106 | . 6 32 5 63 Projectile 106 | . 6 32 5 63 AOE 7 | . . . . 7 Critical Strikes 1 | . . 1 . . Damage Taken 1719 | . 48 434 75 1162 Core 578 | . 8 133 . 437 Absorbed by Shields . | . . . . . Core Remaining (%) 71 | 100 . 43 . . Volleys Fired 44 | 4 . 17 2 21 Largest 2 | 2 . 2 1 2 Hottest 80 | 80 . 80 20 60 Shots Fired 72 | 8 . 29 2 33 Gun 56 | 8 . 29 2 17 Cannon . | . . . . . Launcher 16 | . . . . 16 Special . | . . . . . Kinetic 17 | . . . 2 15 Thermal 29 | 8 . 19 . 2 Explosive 16 | . . . . 16 Electromagnetic 10 | . . 10 . . Robot Hit Streak 7 | 3 . 7 3 6 Robot Miss Streak 3 | 3 . 2 . 2 Penetration Max . | . . . . . Secondary Targets 2 | . . 1 . 1 Max Gunslinging Chain 1 | . . 1 . 1 Shots Hit Robots 47 | 4 . 19 2 22 Core Hits 24 | 2 . 8 1 13 Critical Kills . | . . . . . Critical Parts Destroyed . | . . . . . Critical Strikes . | . . . . . Melee Attacks . | . . . . . Impact . | . . . . . Slashing . | . . . . . Piercing . | . . . . . Sneak Attacks . | . . . . . Combat Hostiles . | . . . . . Follow-up Attacks . | . . . . . Damage Inflicted 1077 | 57 . 212 15 793 Guns 391 | 57 . 212 15 107 Cannons . | . . . . . Explosions 686 | . . . . 686 Melee . | . . . . . Ramming . | . . . . . Kinetic 100 | . . . 15 85 Thermal 243 | 57 . 164 . 22 Explosive 686 | . . . . 686 Electromagnetic 48 | . . 48 . . Impact . | . . . . . Slashing . | . . . . . Piercing . | . . . . . Highest Corruption . | . . . . . Average Corruption . | . . . . . Corruption Purged . | . . . . . Corruption Blocked . | . . . . . Overload Shots . | . . . . . Overflow Damage 47 | . . . . 47 Projectiles . | . . . . . Explosions 47 | . . . . 47 Melee . | . . . . . Knockbacks . | . . . . . Impact . | . . . . . Kinetic . | . . . . . Secondary . | . . . . . Self-Inflicted Damage 62 | . . . . 62 Shots 3 | . . . . 3 Rammed . | . . . . . Targets Rammed . | . . . . . Kicked . | . . . . . Crushed . | . . . . . Highest Temperature 278 | 54 . 278 . 34 Average Temperature 90 | 26 . 141 . 15 Received Heat Transfer 374 | . 6 240 27 101 Effects 2 | . . 2 . . Interference 2 | . . 2 . . Siege Activations . | . . . . . Martial Activations . | . . . . . Shielding Activations . | . . . . . Robots Disrupted . | . . . . . Combat Hostiles . | . . . . . Robots Corrupted . | . . . . . Combat Hostiles . | . . . . . Parts Fried . | . . . . . Impact Corruptions . | . . . . . Robots Melted . | . . . . . Combat Hostiles . | . . . . . Parts Melted . | . . . . . Heat Transferred 550 | 125 . 375 . 50 Parts Sabotaged . | . . . . . Parts Stolen . | . . . . . Parts Stripped . | . . . . . Power Chain Reactions . | . . . . . Alert | -11 -10 -10 -9 -9 ------- Run | Yrd Mat Min Mat Min Maximum Alert Level . | . . . . . Low Security (%) 100 | 100 100 100 100 100 Level 1 . | . . . . . Level 2 . | . . . . . Level 3 . | . . . . . Level 4 . | . . . . . Level 5 . | . . . . . High Security . | . . . . . Max Security . | . . . . . Peak Influence 122 | 5 . 105 29 122 Initial 29 | . . . 29 . Average 31 | . . 37 13 41 Influence Increases 386 | 5 . 165 . 216 Destroy 0b10 Robot/C 200 | . . 100 . 100 Destroy 0b10 Robot/NC 15 | 5 . . . 10 Destroy Leader 40 | . . 20 . 20 Allied During Kill 8 | . . . . 8 Disable Machine 15 | . . 15 . . Destroy Structure 63 | . . . . 63 Lose Combat Pursuer 45 | . . 30 . 15 Influence Decreases 382 | 5 . 90 75 212 Entered New Map 46 | . . . 46 . Time Decay 287 | 5 . 70 20 192 Lost Part 29 | . . 20 9 . Lost Ally 20 | . . . . 20 Squads Dispatched 2 | . 1 . 1 . Investigation 1 | . 1 . . . Extermination . | . . . . . Reinforcement 1 | . . . 1 . Assault . | . . . . . Garrison . | . . . . . Intercept . | . . . . . Searches Triggered . | . . . . . Construction Impeded . | . . . . . Haulers Reinforced . | . . . . . Active Scanning Responses . | . . . . . Cargo Convoy Interrupts . | . . . . . Stealth | -11 -10 -10 -9 -9 --------- Run | Yrd Mat Min Mat Min Distress Signals 1 | . . . . 1 Communications Jammed . | . . . . . Distress Signals . | . . . . . Times Spotted 40 | . 5 8 5 22 Peak Tracking Total 16 | . 5 5 5 16 Tactical Retreats 4 | . . 1 . 3 Traps | -11 -10 -10 -9 -9 ------- Run | Yrd Mat Min Mat Min Traps Triggered 1 | . 1 . . . Indirectly . | . . . . . Trap Hack Attempts . | . . . . . Triggered . | . . . . . Disarmed . | . . . . . Reprogrammed . | . . . . . Reused . | . . . . . Traps Extracted . | . . . . . Installed . | . . . . . Triggered . | . . . . . Machines | -11 -10 -10 -9 -9 ---------- Run | Yrd Mat Min Mat Min Machines Disabled 1 | . . 1 . . Max in Single Turn 1 | . . 1 . . Machines Repaired . | . . . . . Machines Dismantled . | . . . . . Machines Sabotaged . | . . . . . Overloaded Fab Kills . | . . . . . Hacking | -11 -10 -10 -9 -9 --------- Run | Yrd Mat Min Mat Min Machines Accessed . | . . . . . Terminals . | . . . . . Fabricators . | . . . . . Repair Stations . | . . . . . Recycling Units . | . . . . . Scanalyzers . | . . . . . Garrison Access . | . . . . . Total Hacks . | . . . . . Successful . | . . . . . Failed . | . . . . . Catastrophic . | . . . . . Database Lockouts . | . . . . . Manual . | . . . . . Terminals . | . . . . . Fabricators . | . . . . . Repair Stations . | . . . . . Recycling Units . | . . . . . Scanalyzers . | . . . . . Garrison Access . | . . . . . Terminal Hacks . | . . . . . Fabricator Hacks . | . . . . . Repair Station Hacks . | . . . . . Recycling Unit Hacks . | . . . . . Scanalyzer . | . . . . . Garrison Access Hacks . | . . . . . Unauthorized Hacks . | . . . . . Terminals . | . . . . . Fabricators . | . . . . . Repair Stations . | . . . . . Recycling Units . | . . . . . Scanalyzers . | . . . . . Garrison Access . | . . . . . Data Cores Recovered . | . . . . . Used . | . . . . . Hacking Detections . | . . . . . Full Trace Events . | . . . . . Feedback Events . | . . . . . Feedback Blocked . | . . . . . Robot Schematics Acquired . | . . . . . Robots Built . | . . . . . Authchips . | . . . . . Time . | . . . . . Total Robot Build Rating . | . . . . . Part Schematics Acquired . | . . . . . Parts Built . | . . . . . Authchips . | . . . . . Time . | . . . . . Total Part Build Rating . | . . . . . Parts Repaired . | . . . . . Time . | . . . . . Parts Recycled . | . . . . . Recycled Matter . | . . . . . Retrieved Matter . | . . . . . Retrieved Components . | . . . . . Parts Scanalyzed . | . . . . . Part Schematics Acquired . | . . . . . Parts Damaged . | . . . . . Bothacking | -11 -10 -10 -9 -9 ------------ Run | Yrd Mat Min Mat Min Used RIF Installer . | . . . . . Robots Hacked . | . . . . . Non-combat . | . . . . . Combat . | . . . . . Robot Hacks Applied . | . . . . . Relay Couplers Released . | . . . . . Fabnet Peak Effective % . | . . . . . Robots Rewired . | . . . . . Allies Hacked . | . . . . . Hacks Repelled . | . . . . . Allies | -11 -10 -10 -9 -9 -------- Run | Yrd Mat Min Mat Min Total Allies 2 | . . . . 2 Largest Group 2 | . . . . 2 Highest-Rated Group 41 | . . . . 41 Highest-Rated Ally 31 | . . . . 31 Total Orders . | . . . . . Ally Attacks 7 | . . . . 7 Total Damage 104 | . . . . 104 Kills 1 | . . . . 1 Allies Corrupted . | . . . . . Allies Melted . | . . . . . Intel | -11 -10 -10 -9 -9 ------- Run | Yrd Mat Min Mat Min Active Infowar (turns) 569 | . . 100 77 392 Seismic 569 | . . 100 77 392 Robot Analysis Total . | . . . . . Derelict Logs Recovered 3 | . . 1 . 2 Drone Launches . | . . . . . Drone Recoveries . | . . . . . Exploration | -11 -10 -10 -9 -9 ------------- Run | Yrd Mat Min Mat Min Turns Passed 826 | 74 55 152 77 468 Spaces Moved 588 | 52 61 95 74 306 Core 7 | 7 . . . . Treads . | . . . . . Legs 12 | . . . . 12 Wheels 569 | 45 61 95 74 294 Hover . | . . . . . Flight . | . . . . . Fastest Speed 50 | 50 90 90 90 90 Average Speed 107 | 84 90 90 90 124 Slowest Speed 270 | 90 90 90 90 270 Overloaded Moves . | . . . . . Propulsion Burnouts . | . . . . . Robots Hopped . | . . . . . Potential Cave-ins 4 | . . . . 4 Cave-ins Triggered 1 | . . . . 1 Exploration Rate (%) 25 | 4 19 33 11 61 Regions Visited 4 Branch Regions 2 Pre-discovered Areas 1 | . . 1 . . Known Exits Taken . | . . . . . Unknown Exits Taken 4 | 1 1 1 1 . Scrap Searched . | . . . . . Spaces Dug . | . . . . . Terrain Destroyed 115 | . . . . 115 Melee . | . . . . . Projectile . | . . . . . AOE 115 | . . . . 115 Terrain Rammed . | . . . . . Walls Destroyed . | . . . . . Machines Disabled . | . . . . . Actions | -11 -10 -10 -9 -9 --------- Run | Yrd Mat Min Mat Min Total 712 | 73 60 131 83 365 Wait 24 | . . 12 . 12 Move 584 | 51 60 94 73 306 Hop . | . . . . . Pick Up 29 | 12 . 3 4 10 Fast Attach . | . . . . . Attach 19 | 6 . 2 3 8 Detach 1 | . . . 1 . Swap 5 | . . 2 . 3 Drop 5 | . . 1 . 4 Fire 44 | 4 . 17 2 21 Melee . | . . . . . Ram . | . . . . . Kick . | . . . . . Crush . | . . . . . Escape Stasis . | . . . . . Rewire 1 | . . . . 1 Trap . | . . . . . Miscellaneous . | . . . . . Route ------- -11/Scrapyard -10/Materials -10/Mines (discovered 2 exits: [*Mat x2]) -9/Materials -9/Mines History --------- Turn | Location | Event 30 | -11/Scrapyard | Discovered new exit (range 15) 75 | -11/Scrapyard | Entered Materials 114 | -10/Materials | Discovered new exit (range 15) 130 | -10/Materials | Entered Mines 190 | -10/Mines | Found a hidden stash of uninstalled traps 206 | -10/Mines | Discovered new exit (range 16) 207 | -10/Mines | Learned location of Mines (-9) 267 | -10/Mines | Discovered new exit (range 12) 280 | -10/Mines | Core integrity fell below 50% 282 | -10/Mines | Entered Materials 282 | -9/Materials | Evolved 2 slots: Utility x2 335 | -9/Materials | Build established: Mutant 346 | -9/Materials | Discovered new exit (range 15) 359 | -9/Materials | Entered Mines 409 | -9/Mines | Learned location of 1 exit from Lower Caves 548 | -9/Mines | Learned Materials trap positions 661 | -9/Mines | Assembled infested the area 666 | -9/Mines | Assisted by a Guerilla fighting off Assembled 749 | -9/Mines | Core integrity fell below 50% 777 | -9/Mines | Core integrity fell below 20% 790 | -9/Mines | Lost 8 parts (1p3n2u2w) 828 | -9/Mines | Crushed by falling debris 828 | -9/Mines | Smashed by cave-in Last Messages --------------- U-05 Engineer builds a Wall. The unstable cave ceiling collapses. U-05 Engineer lays Concrete. Seismic Detector destroyed. The unstable cave ceiling collapses. 13 Matter crushed. Wheel destroyed. U-05 Engineer lays Concrete. D-53 Grenadier destroyed. The unstable cave ceiling collapses. Sml. Laser destroyed. The unstable cave ceiling collapses. Com. Wheel destroyed. T-07 Excavator is excavating. Dropped Huge Storage Unit. T-07 Excavator is excavating. T-07 Excavator destroyed. Destroyed Asb. Hover Unit. The unstable cave ceiling collapses. Crushed by falling debris. Map ----- +----------------------------------------------------+ | ??## ##?????????? | | ??# #?????????? | | ??# """ #?????????? | | ??## """ #?????????? | | ???# """ ##?????????? | | ???# ## ##??????????? | | ???# #### #???????????? | | ???## ##??### #???????????? | | ????####?????# #???????????? | | ?????????????# #???????????? | | ?????????????# #???????????? | | ?????????????# #???????????? | | ?????????????# ####??????##? | | ?????????????# #????? #? | | ?????????????#### ###### #?? | | ????????????????# #?? | | ????????????????###### ###?? | | ?????????????????????# #?### | | ??????????####???????# #?# | | ?????????## ######### ### # | | ?????????# # | | ??????#### ############## | | ???### # #????????????? | | ???# ! ##???????????? | | ??### * #???????????? | | ??#@ a #????????????? | | ??## % #????????????? | | ???# ##????????????? | | ???## #?????????????? | | ?????# ###?????????????? | | ??????######???????????????? | | ???????????????????????????? | | ???????????????????????????? | | ???????????????????????????? | | ???????????????????????????? | | ???????????????????????????? | | ???????????????????????????? | | ???????????????????????????? | | ???????????????????????????? | | ???????????????????????????? | | ???????????????????????????? | | ???????????????????????????? | | | | | | | | | | | | | | | | | +----------------------------------------------------+ Best States ------------- Heat Dissipation 28 Energy Generation 10 Energy Capacity 250 Matter Stores 300 Matter Capacity 300 Sight Range 16 Terrain Scan Density 10 Armor Coverage 225 Evasion (%) 50 Item Schematics ----------------- None Robot Schematics ------------------ None Fabricated ------------ Nothing Repaired ---------- Nothing Alien Tech Used ----------------- None Achievements -------------- Backstab Challenges ------------ None Game ------ Seed LinkedPiercingTrap Manual? 0 Play Time 00:14:17 Cumulative 58.0 hours Start 2025.07.08 @ 15:39:03 End 2025.07.08 @ 15:52:36 Sessions 1 Manual Loads 0 Difficulty Rogue Special Mode None Game No. 59 Rogue 49 Adventurer 10 Explorer 0 Win Type - Total 1 Types 1/0/0/0/0/0/0/0/0/0 Lore% 26 Gallery% 36 Achievement% 31 Wizard Run 0 Options --------- Layout 1 ASCII 0 Keyboard 0 Movement Numpad Keybinds 0 Fullscreen 1 Font 24/Smallcaps Map View 50x35 Zoom Use 0% Tactical HUD 0 Map Filters NONE Filters NONE Steam 1 RUN: ddf6d974-ebdb-4c61-b8a1-36b788f0275b